Cogmind - Beta 15 @@@ ROGUE MODE // 2025.07.15 @ 07:44:33 Player: Surreal Result: Destroyed by Y-45 Defender with Beam Rifle Performance ------------- Evolutions (2) 1000 Regions Visited (4) 800 Robots Destroyed (28) 140 Value Destroyed (857) 857 Prototype IDs (6) 120 Alien Tech Used (0) 0 Bonus (0) 0 TOTAL SCORE: 2917 Bonus ------- None Cogmind --------- Core Integrity 0/550 Matter 275/300 Energy 153/160 System Corruption 5% Temperature Cool (27) Movement Hovering (60) Location -8/Materials Parts ------- > --- POWER (2) -------- Light Nuclear Core > --- PROPULSION (3) --- Improved Hover Unit > --- UTILITY (3) ------ Improved Signal Interpreter > --- WEAPON (3) ------- Blade Saw > --- INVENTORY (5) ---- Improved Sensor Array ECM Suite Datajack Peak State ------------ > --- POWER ------------ Improved Ion Engine > --- PROPULSION ------- Aerolev Unit Aerolev Unit Aerolev Unit > --- UTILITY ---------- Improved Sensor Array Improved Signal Interpreter ECM Suite > --- WEAPON ----------- Particle Gun Field Laser Scythe > --- INVENTORY -------- Improved Hover Unit ECM Suite Datajack [Rating: 29] Favorites ----------- Power Light Ion Engine Engine Light Ion Engine Power Core Light Nuclear Core Propulsion Hover Unit Leg Aluminum Leg Wheel Wheel Hover Unit Hover Unit Flight Unit Flight Unit Utility Targeting Computer Device ECM Suite Storage Small Storage Unit Processor Targeting Computer Weapon Medium Laser Energy Gun Medium Laser Energy Cannon Light EM Pulse Cannon Ballistic Gun Heavy Assault Rifle Slashing Weapon Scythe Special Melee Weapon Datajack Build | -11 -10 -10 -9 -8 ------- Run | Yrd Mat Min Mat Mat Slots Evolved 4 | . . . 2 2 Power 1 | . . . . 1 Propulsion 1 | . . . 1 . Utility 1 | . . . 1 . Weapon 1 | . . . . 1 Parts Attached 46 | 5 7 1 3 30 Power 4 | 1 . . 1 2 Engine 3 | 1 . . 1 1 Core 1 | . . . . 1 Reactor . | . . . . . Propulsion 17 | 2 3 . 1 11 Treads . | . . . . . Leg 3 | . . . . 3 Wheel 2 | 2 . . . . Hover 9 | . 3 . 1 5 Flight 3 | . . . . 3 Utility 13 | . 3 1 . 9 Device 7 | . . . . 7 Storage 3 | . 3 . . . Processor 3 | . . 1 . 2 Hackware . | . . . . . Protection . | . . . . . Artifact . | . . . . . Weapon 12 | 2 1 . 1 8 Energy Gun 6 | 2 . . . 4 Energy Cannon 1 | . . . . 1 Ballistic Gun 1 | . . . . 1 Ballistic Cannon . | . . . . . Launcher . | . . . . . Special Weapon . | . . . . . Impact Weapon . | . . . . . Slashing Weapon 2 | . . . . 2 Piercing Weapon . | . . . . . Special Melee Weapon 2 | . 1 . 1 . Unidentified Prototypes 2 | . . . . 2 Parts Lost 19 | . . . 2 17 Power 2 | . . . . 2 Propulsion 9 | . . . 1 8 Utility 2 | . . . . 2 Weapon 6 | . . . 1 5 Highest Loss Streak 7 | . . . 2 7 To Critical Strikes . | . . . . . Average Backups 4 | 1 3 6 5 4 Power . | . . . . . Propulsion 1 | 1 2 4 2 . Utility . | . . . . . Weapon . | . . 1 1 . Tool/Special . | . . . . . Unused Backups 4 | . 2 . . 2 Power . | . . . . . Propulsion 2 | . 1 . . 1 Utility 2 | . 1 . . 1 Weapon . | . . . . . Tool/Special . | . . . . . Average Slot Usage (%) 74 | . 83 91 80 69 Engine 9 | . 14 14 11 7 Leg 4 | . . . . 7 Hover 15 | . 23 28 27 10 Device 7 | . . . . 11 Storage 4 | . 12 14 11 . Processor 7 | . . 6 11 8 Energy Gun 13 | . 23 14 13 11 Energy Cannon 1 | . . . . 2 Slashing Weapon 3 | . . . . 5 Special Melee Weapon 4 | . 4 14 6 2 Peak Build Rating 29 | 5 7 7 9 29 Average Rating 10 | 3 5 6 7 13 On Entrance 5 | . 5 6 7 9 Naked Turns . | . . . . . Heaviest Build 20 | 7 17 11 16 20 Greatest Support 24 | 20 20 12 18 24 Greatest Overweight (x) 2 | . 1 . 1 2 Average Overweight (x) . | . . . . . Largest Inventory Capacity 15 | 5 15 8 8 8 Average Capacity 6 | 5 7 8 8 5 Most Carried 8 | 5 8 7 6 7 Average Carried 4 | 2 3 6 5 4 Final Capacity 8 | 5 8 8 8 5 Final Carried 6 | 2 6 6 5 3 Class Distribution -------------------- 100% | Mutant Dominant Class ---------------- Mutant | -10/Materials Mutant | -10/Mines Mutant | -9/Materials Mutant | -8/Materials Resources | -11 -10 -10 -9 -8 ----------- Run | Yrd Mat Min Mat Mat Matter Collected 890 | 250 60 . 50 530 Remotely . | . . . . . Salvage Created 982 | 47 119 . 60 756 Parts 58 | . 9 . 2 47 Haulers Intercepted . | . . . . . Recyclers Shooed . | . . . . . Parts Field Recycled . | . . . . . Retrieved Matter . | . . . . . Parts Self-Destructed . | . . . . . Prevented . | . . . . . Kills | -11 -10 -10 -9 -8 ------- Run | Yrd Mat Min Mat Mat Combat Hostiles Destroyed 23 | 1 1 . 1 20 Melee 13 | . . . . 13 Guns 8 | 1 1 . 1 5 AOE 2 | . . . . 2 Classes Destroyed 7 | 1 3 . 1 2 Worker 1 | . 1 . . . Operator 2 | . 2 . . . Watcher 2 | . 1 . . 1 Swarmer 6 | . . . . 6 Cutter 2 | . . . . 2 Grunt 10 | 1 1 . . 8 Sentry 5 | . . . 1 4 Best Kill Streak 4 | 1 3 . 1 4 Combat Bots Only 4 | 1 1 . 1 4 Max Kills in Single Turn 2 | 1 1 . 1 2 Gunslinging . | . . . . . Exploded 2 | . . . . 2 Melee 1 | . . . . 1 Uniques/NPCs Destroyed . | . . . . . Combat | -11 -10 -10 -9 -8 -------- Run | Yrd Mat Min Mat Mat Hostile Shots Fired 188 | 4 4 4 14 162 Missed 58 | . 1 3 5 49 Hits 130 | 4 3 1 9 113 Melee 5 | . . . . 5 Projectile 125 | 4 3 1 9 108 Critical Strikes 10 | . . 1 2 7 Damage Taken 1914 | 42 33 7 138 1694 Core 603 | 10 . 7 28 558 Absorbed by Shields . | . . . . . Core Remaining (%) 94 | 96 . 93 93 . Volleys Fired 64 | 4 15 . 18 27 Largest 2 | 2 2 . 2 2 Hottest 128 | 100 100 . 100 128 Shots Fired 105 | 8 22 . 25 50 Gun 97 | 8 22 . 25 42 Cannon 8 | . . . . 8 Launcher . | . . . . . Special . | . . . . . Kinetic . | . . . . . Thermal 97 | 8 22 . 25 42 Explosive . | . . . . . Electromagnetic 8 | . . . . 8 Robot Hit Streak 9 | 3 9 . 6 5 Robot Miss Streak 3 | 1 3 . 3 3 Penetration Max . | . . . . . Secondary Targets . | . . . . . Shots Hit Robots 131 | 5 18 2 23 83 Core Hits 39 | 2 8 . 2 27 Critical Kills . | . . . . . Critical Parts Destroyed . | . . . . . Critical Strikes 6 | 2 1 . 1 2 Burn 4 | 2 1 . 1 . Sever 2 | . . . . 2 Melee Attacks 86 | . 5 2 9 70 Impact . | . . . . . Slashing 54 | . . . . 54 Piercing . | . . . . . Sneak Attacks 31 | . 4 2 9 16 Combat Hostiles . | . . . . . Follow-up Attacks . | . . . . . Damage Inflicted 2016 | 64 175 . 172 1605 Guns 751 | 64 175 . 172 340 Cannons 94 | . . . . 94 Explosions 91 | . . . . 91 Melee 1080 | . . . . 1080 Ramming . | . . . . . Kinetic . | . . . . . Thermal 842 | 64 175 . 172 431 Explosive . | . . . . . Electromagnetic 94 | . . . . 94 Impact . | . . . . . Slashing 1080 | . . . . 1080 Piercing . | . . . . . Highest Corruption 5 | . . . . 5 Average Corruption 4 | . . . . 4 Corruption Purged . | . . . . . Corruption Blocked . | . . . . . Effects 29 | . . . . 29 Message Errors 3 | . . . . 3 Matter Fused 8 | . . . . 8 Heat Flow Errors 6 | . . . . 6 Energy Discharges 2 | . . . . 2 Parts Fused 2 | . . . . 2 Data Loss (minor) 5 | . . . . 5 Data Loss (major) 1 | . . . . 1 Misfires 1 | . . . . 1 Weapon Failures 1 | . . . . 1 Overload Shots . | . . . . . Overflow Damage 62 | . . . . 62 Projectiles . | . . . . . Explosions . | . . . . . Melee 62 | . . . . 62 Knockbacks . | . . . . . Impact . | . . . . . Kinetic . | . . . . . Secondary . | . . . . . Self-Inflicted Damage . | . . . . . Shots . | . . . . . Rammed 1 | . . . . 1 Targets Rammed 1 | . . . . 1 Kicked . | . . . . . Crushed . | . . . . . Highest Temperature 265 | 180 92 . 203 265 Average Temperature 84 | 95 32 . 84 100 Received Heat Transfer 708 | 24 18 . 81 585 Siege Activations . | . . . . . Martial Activations . | . . . . . Shielding Activations . | . . . . . Robots Disrupted . | . . . . . Combat Hostiles . | . . . . . Robots Corrupted . | . . . . . Combat Hostiles . | . . . . . Parts Fried 2 | . . . . 2 Impact Corruptions . | . . . . . Robots Melted . | . . . . . Combat Hostiles . | . . . . . Parts Melted 4 | . 2 . 2 . Heat Transferred 2418 | 333 592 . 592 901 Parts Sabotaged . | . . . . . Parts Stolen . | . . . . . Parts Stripped . | . . . . . Power Chain Reactions 1 | . . . . 1 Alert | -11 -10 -10 -9 -8 ------- Run | Yrd Mat Min Mat Mat Maximum Alert Level 1 | . . . . 1 Low Security (%) 98 | 100 100 100 100 97 Level 1 1 | . . . . 2 Level 2 . | . . . . . Level 3 . | . . . . . Level 4 . | . . . . . Level 5 . | . . . . . High Security . | . . . . . Max Security . | . . . . . Peak Influence 231 | 20 37 4 30 231 Initial 5 | . . 4 . 5 Average 23 | 2 8 . 4 35 Influence Increases 891 | 20 92 . 45 734 Destroy 0b10 Robot/C 460 | 20 20 . 20 400 Destroy 0b10 Robot/NC 25 | . 20 . . 5 Destroy Leader 104 | . 12 . 10 82 Successful Hack 12 | . 10 . . 2 Disable Machine 30 | . . . . 30 Destroy Structure 5 | . . . . 5 Partial Spotted 60 | . 30 . 15 15 Lose Combat Pursuer 195 | . . . . 195 Influence Decreases 644 | 20 80 12 30 502 Entered New Map 18 | . . 8 . 10 Time Decay 466 | 20 80 4 30 332 Lost Part 160 | . . . . 160 Squads Dispatched 6 | . 1 . . 5 Investigation 2 | . . . . 2 Extermination . | . . . . . Reinforcement 4 | . 1 . . 3 Assault . | . . . . . Garrison . | . . . . . Intercept . | . . . . . Searches Triggered . | . . . . . Construction Impeded . | . . . . . Haulers Reinforced . | . . . . . Active Scanning Responses . | . . . . . Cargo Convoy Interrupts . | . . . . . Stealth | -11 -10 -10 -9 -8 --------- Run | Yrd Mat Min Mat Mat Distress Signals 2 | . . . 1 1 Communications Jammed . | . . . . . Distress Signals . | . . . . . Times Spotted 59 | 1 9 3 4 42 Peak Tracking Total 13 | 1 3 3 3 13 Tactical Retreats 7 | . . . . 7 Traps | -11 -10 -10 -9 -8 ------- Run | Yrd Mat Min Mat Mat Traps Triggered 1 | . . . . 1 Indirectly . | . . . . . Trap Hack Attempts . | . . . . . Triggered . | . . . . . Disarmed . | . . . . . Reprogrammed . | . . . . . Reused . | . . . . . Traps Extracted . | . . . . . Installed . | . . . . . Triggered . | . . . . . Machines | -11 -10 -10 -9 -8 ---------- Run | Yrd Mat Min Mat Mat Machines Disabled 2 | . . . . 2 Max in Single Turn 1 | . . . . 1 Machines Repaired . | . . . . . Machines Dismantled . | . . . . . Machines Sabotaged . | . . . . . Overloaded Fab Kills . | . . . . . Hacking | -11 -10 -10 -9 -8 --------- Run | Yrd Mat Min Mat Mat Machines Accessed 12 | . 4 . 2 6 Terminals 9 | . 3 . 2 4 Fabricators . | . . . . . Repair Stations . | . . . . . Recycling Units 2 | . 1 . . 1 Scanalyzers 1 | . . . . 1 Garrison Access . | . . . . . Total Hacks 33 | . 11 . 5 17 Successful 19 | . 9 . 3 7 Failed 14 | . 2 . 2 10 Catastrophic 2 | . . . . 2 Database Lockouts . | . . . . . Manual . | . . . . . Terminals 25 | . 9 . 5 11 Fabricators . | . . . . . Repair Stations . | . . . . . Recycling Units 4 | . 2 . . 2 Scanalyzers 4 | . . . . 4 Garrison Access . | . . . . . Terminal Hacks 13 | . 7 . 3 3 Record 8 | . 5 . . 3 Prototype ID Bank 2 | . 1 . 1 . Investigation Status 1 | . . . 1 . Hauler Manifests 1 | . 1 . . . Zone Layout 1 | . . . 1 . Fabricator Hacks . | . . . . . Repair Station Hacks . | . . . . . Recycling Unit Hacks 3 | . 2 . . 1 Report Inventory 1 | . 1 . . . Retrieve Components 2 | . 1 . . 1 Scanalyzer 3 | . . . . 3 Insert Component 2 | . . . . 2 Analyze 1 | . . . . 1 Garrison Access Hacks . | . . . . . Unauthorized Hacks . | . . . . . Terminals . | . . . . . Fabricators . | . . . . . Repair Stations . | . . . . . Recycling Units . | . . . . . Scanalyzers . | . . . . . Garrison Access . | . . . . . Data Cores Recovered 1 | . 1 . . . Used . | . . . . . Hacking Detections 11 | . 3 . 2 6 Full Trace Events 3 | . 1 . . 2 Feedback Events . | . . . . . Feedback Blocked . | . . . . . Robot Schematics Acquired . | . . . . . Robots Built . | . . . . . Authchips . | . . . . . Time . | . . . . . Total Robot Build Rating . | . . . . . Part Schematics Acquired 1 | . . . . 1 Parts Built . | . . . . . Authchips . | . . . . . Time . | . . . . . Total Part Build Rating . | . . . . . Parts Repaired . | . . . . . Time . | . . . . . Parts Recycled . | . . . . . Recycled Matter . | . . . . . Retrieved Matter . | . . . . . Retrieved Components 17 | . 7 . . 10 Parts Scanalyzed 1 | . . . . 1 Part Schematics Acquired 1 | . . . . 1 Parts Damaged 1 | . . . . 1 Bothacking | -11 -10 -10 -9 -8 ------------ Run | Yrd Mat Min Mat Mat Used RIF Installer . | . . . . . Robots Hacked 16 | . 2 2 5 7 Non-combat 15 | . 1 2 5 7 Combat 1 | . 1 . . . Robot Hacks Applied 24 | . 4 2 6 12 parse_system 8 | . 2 2 2 2 no_distress 14 | . 1 . 4 9 find_recycling 1 | . . . . 1 check_alert 1 | . 1 . . . Relay Couplers Released . | . . . . . Fabnet Peak Effective % . | . . . . . Robots Rewired . | . . . . . Allies Hacked . | . . . . . Hacks Repelled . | . . . . . Allies | -11 -10 -10 -9 -8 -------- Run | Yrd Mat Min Mat Mat Total Allies . | . . . . . Largest Group . | . . . . . Highest-Rated Group . | . . . . . Highest-Rated Ally . | . . . . . Total Orders . | . . . . . Ally Attacks . | . . . . . Total Damage . | . . . . . Kills . | . . . . . Allies Corrupted . | . . . . . Allies Melted . | . . . . . Intel | -11 -10 -10 -9 -8 ------- Run | Yrd Mat Min Mat Mat Active Infowar (turns) 980 | . . . . 980 Sensors 354 | . . . . 354 Terrain 264 | . . . . 264 ECM 857 | . . . . 857 Robot Analysis Total . | . . . . . Derelict Logs Recovered . | . . . . . Drone Launches . | . . . . . Drone Recoveries . | . . . . . Exploration | -11 -10 -10 -9 -8 ------------- Run | Yrd Mat Min Mat Mat Turns Passed 2134 | 105 285 202 198 1344 Spaces Moved 1794 | 114 336 275 165 904 Core 36 | 34 . . . 2 Treads . | . . . . . Legs 284 | . . . . 284 Wheels 113 | 80 33 . . . Hover 1322 | . 303 275 165 579 Flight 39 | . . . . 39 Fastest Speed 37 | 50 56 56 52 37 Average Speed 67 | 71 58 56 55 75 Slowest Speed 180 | 80 116 56 120 180 Overloaded Moves . | . . . . . Propulsion Burnouts . | . . . . . Robots Hopped . | . . . . . Potential Cave-ins . | . . . . . Cave-ins Triggered . | . . . . . Exploration Rate (%) 31 | 8 33 54 12 51 Regions Visited 4 Branch Regions 1 Pre-discovered Areas . | . . . . . Known Exits Taken . | . . . . . Unknown Exits Taken 4 | 1 1 1 1 . Scrap Searched 1 | . . 1 . . Spaces Dug . | . . . . . Terrain Destroyed 5 | . . . . 5 Melee . | . . . . . Projectile . | . . . . . AOE 5 | . . . . 5 Terrain Rammed . | . . . . . Walls Destroyed . | . . . . . Machines Disabled . | . . . . . Actions | -11 -10 -10 -9 -8 --------- Run | Yrd Mat Min Mat Mat Total 2526 | 129 400 321 237 1439 Wait 408 | . 21 43 35 309 Move 1790 | 113 335 274 164 904 Hop . | . . . . . Pick Up 56 | 7 10 1 2 36 Fast Attach . | . . . . . Attach 56 | 5 4 1 3 43 Detach 18 | . 2 . . 16 Swap 19 | . 3 . 6 10 Drop 28 | . 5 . . 23 Fire 64 | 4 15 . 18 27 Melee 86 | . 5 2 9 70 Ram 1 | . . . . 1 Kick . | . . . . . Crush . | . . . . . Escape Stasis . | . . . . . Rewire . | . . . . . Trap . | . . . . . Miscellaneous . | . . . . . Route ------- -11/Scrapyard -10/Materials -10/Mines (discovered 2 exits: *Mat / [*Exi]) -9/Materials -8/Materials (discovered 1 exit: [*Fac]) History --------- Turn | Location | Event 2 | -11/Scrapyard | Met Revision 17 63 | -11/Scrapyard | Discovered new exit (range 8) 106 | -11/Scrapyard | Entered Materials 271 | -10/Materials | Discovered new exit (range 14) 328 | -10/Materials | Build established: Mutant 391 | -10/Materials | Entered Mines 522 | -10/Mines | Deemed a non-threat by the Exiles lab entrance 522 | -10/Mines | Discovered new exit (range 5) 549 | -10/Mines | Discovered new exit (range 8) 593 | -10/Mines | Entered Materials 593 | -9/Materials | Evolved 2 slots: Propulsion x1, Utility x1 769 | -9/Materials | Discovered new exit (range 16) 791 | -9/Materials | Entered another Materials area 791 | -8/Materials | Evolved 2 slots: Power x1, Weapon x1 918 | -8/Materials | Lost 3 parts (2n1w) 1300 | -8/Materials | Lost 3 parts (2n1u) 1926 | -8/Materials | Discovered new exit (range 8) 1985 | -8/Materials | Core integrity fell below 50% 2065 | -8/Materials | Core integrity fell below 20% 2115 | -8/Materials | Lost 7 parts (1p3n3w) 2135 | -8/Materials | Destroyed by Y-45 Defender with Beam Rifle Last Messages --------------- Lgt. Ion Engine Lgt. Nuclear Core Aluminum Leg Imp. Terrain Scanner Visual Processing Unit Aluminum Leg 02072_ ALERT: Suspicious activity at Recycling Unit M002. Dispatching Investigation squad. 02073_ Acquired Lgt. Nuclear Core. 02084_ Aerolev Unit destroyed. 02097_ System corrupted: Energy discharge (-57). 02102_ G-47 Trooper Aluminum Leg severed. 02105_ G-47 Trooper destroyed. 02111_ G-47 Trooper Lgt. Nuclear Core severed. 02120_ G-47 Trooper destroyed. 02124_ K-01 Serf collects debris. 02125_ V2 BDH=ONS WLBS<49YPVT 4VMVD4BI 02126_ K-01 Serf collects debris. 02135_ G-47 Trooper destroyed. 02135_ Critical hit (Burn: +37). Map ----- +----------------------------------------------------+ | # # #?#?# #????????? | | # # #???# #????????? | | ###/#### #???# ###/### ########????????? | | # ## ##### ## ###+#####?????????????? | | # """ ## ##T"# ## # #?????????????? | | # "T" # # "# ## # #?????????????? | | # # ## # #?????????????? | | # # T + # #?????????????? | | # # ## # #?????????????? | | / ! # #####+######## #?????????????? | | # """ ####### ## """ #?????????????? | | # """ #?????# """ ## """"" #?????????????? | | # """ #?????#""""" ## """"" #?????????????? | | # ##????#""""" ## """"" #?????????????? | | # #?????#""""" ## ?"" #?????????????? | | #######?????# """ ###????###?????????????? | | #???????#???# #??????????????????????? | | #??????????#################???????????????????? | | +######???????????## * #???????????????????? | | #????????????# ! ! #???????????????????? | | #????" ??????# [#???????????????????? | | #??? ??????# #???????????????????? | | #???!! ??????# """ """ #???????????????????? | | """ #???! ??????# """ """ #???????????????????? | | """ #???! ???????# """%""" #???????????????????? | | """ #??? ???????# [k@ #???????????????????? | | ##########+#############/##########??????????????? | | *Yk ??????????? | | [ ??????????? | | ??????????? | | #####!! ###################+### ???????????? | | ????#!! ==""#????????????????????????????????????? | | #####! ![*Y"#????????????????????????????????????? | | !![## !=""#????????????????????????????????????? | | !![## =* #????????????????????????????????????? | | !![## +????????????????????????????????????? | | ## ######????????????????????????????????????? | | ## #?????????????????????????????????????????? | | ## ##????????????????????????????????????????? | | #+## #????????????????????????????????????????? | | ==% #######??????????????????????????????????? | | !=% % #???????????????????????????????? | | #+##== ########+????????????????????????????????? | | #"/#######????????????????????????????????????? | | " #????????????????????????????????????? | | # " #????????????????????????????????????? | | # """ #????????????????????????????????????? | | # " #????????????????????????????????????? | | ] # % #????????????????????????????????????? | | #### """ #????????????????????????????????????? | +----------------------------------------------------+ Best States ------------- Heat Dissipation 41 Energy Generation 14 Energy Capacity 265 Matter Stores 300 Matter Capacity 300 Sight Range 16 Robot Scan Range 15 Terrain Scan Range 16 Terrain Scan Density 110 ECM Strength 2 Evasion (%) 62 Targeting Accuracy 5 Authchip Count 1 Item Schematics ----------------- Hvy. Particle Gun | -8/Materials | Scanalyzed Robot Schematics ------------------ None Fabricated ------------ Nothing Repaired ---------- Nothing Alien Tech Used ----------------- None Achievements -------------- Omniscient Cartographer Shopping List Challenges ------------ None Game ------ Seed BoltColdBoomstick Manual? 0 Play Time 01:11:20 Cumulative 1.1 hours Start 2025.07.15 @ 05:16:58 End 2025.07.15 @ 07:44:33 Sessions 1 Manual Loads 0 Difficulty Rogue Special Mode None Game No. 1 Rogue 1 Adventurer 0 Explorer 0 Win Type - Total 0 Types 0/0/0/0/0/0/0/0/0/0 Lore% 0 Gallery% 3 Achievement% 14 Wizard Run 0 Options --------- Layout 1 ASCII 0 Keyboard 0 Movement Mouse Keybinds 0 Fullscreen 1 Font 24/Terminus Map View 50x35 Zoom Use 0% Tactical HUD 1 Map Filters NONE Filters NONE Steam 1 RUN: ba922500-56da-4358-a95a-c711ec801c60